[Event "Qatar Masters 2024"]
[Site "Doha"]
[Date "2024.12.03"]
[Round "1.60"]
[White "Uskov, Artem"]
[Black "Garv Rai"]
[Result "1-0"]
[Annotator "TA"]
[ECO "C65"]
[WhiteElo "2430"]
[BlackElo "2277"]
[PlyCount "85"]
[EventDate "2024.11.24"]
[EventType "swiss"]
[EventCountry "QAT"]
[SourceTitle "playchess.com"]
[Source "ChessBase"]
[SourceQuality "1"]
[TimeControl "40/5400+30:1800+30"]

{[%evp 9,85,8,16,13,17,12,13,19,14,0,0,4,12,0,36,34,31,29,51,41,54,40,31,-14,34,4,4,20,77,55,58,67,85,52,22,27,87,70,61,26,109,113,212,168,172,95,545,533,618,423,430,414,410,430,436,439,402,441,434,435,448,446,466,451,534,535,789,656,696,496,489,489,493,493,653,547,659,656]} 1. e4 {[%emt 0:00:02]} e5 {[%emt 0:00:18]} 2. Nf3 {[%emt 0:00:06]} Nc6 {[%emt 0:00:05]} 3. Bb5 {[%emt 0:00:06]} Nf6 {[%emt 0:00:05]} 4. d3 {[%emt 0:00:04]} Bc5 {[%emt 0:00:09]} 5. c3 {[%emt 0:00:06]} d5 {[%emt 0:00:19]} 6. Nbd2 {[%emt 0:14:29]} dxe4 {[%emt 0:01:59]} 7. dxe4 {[%emt 0:00:08][%cal Od1e2]} O-O {[%emt 0:00:19]} 8. O-O {[%emt 0:00:15]} a5 {[%emt 0:00:18]} 9. Qc2 {[%emt 0:02:02]} Qe7 {[%emt 0:00:13]} 10. a4 {[%emt 0:01:18]} Nb8 {[%emt 0:00:09]} 11. h3 {[%emt 0:05:40]} c6 {[%emt 0:00:13]} 12. Bd3 {[%emt 0:01:34]} Nbd7 {[%emt 0:00:27]} 13. Rd1 {[%emt 0:02:31]} Re8 {[%emt 0:04:11]} 14. Nc4 {[%emt 0:02:20]} h6 {[%emt 0:00:47]} 15. Bd2 {[%emt 0:03:50]} Nh5 {[%emt 0:14:05]} 16. Qb1 {[%emt 0:01:26]} Nf4 {[%emt 0:07:06]} (16... Nb6 $11 {is superior.}) 17. Bf1 {[%emt 0:01:52]} Qf6 {[%emt 0:00:54][%cal Of4h3] And now ...Nxh3+! would win.} 18. b4 {[%emt 0:01:20]} axb4 {[%emt 0:22:41]} (18... Ba7 $11) 19. cxb4 $16 {[%emt 0:00:42][%cal Od2f4] and Bxf4! should not be overlooked} Bf8 {[%emt 0:01:59][%cal Of4h3]} 20. Ra3 {[%emt 0:07:42]} Rb8 {[%emt 0:05:25]} 21. Ne1 {[%emt 0:10:41]} b5 {[%emt 0:05:33]} 22. axb5 {[%emt 0:00:27]} Rxb5 {[%emt 0:00:27]} (22... cxb5 $11 {keeps the balance.} 23. Na5 Qg6) 23. Rf3 {[%emt 0:02:13]} Qg6 {[%emt 0:08:55]} 24. Rg3 {[%emt 0:02:37]} Qh5 {[%emt 0:02:12] [#]} (24... Qh7 $11) 25. Nf3 $1 {[%emt 0:01:28]} Nf6 {[%emt 0:03:09]} (25... Kh8 $16 {is a better defense.} 26. Qc2 Nf6) 26. Re1 {[%emt 0:01:44]} Bd7 {[%emt 0:10:12]} 27. Qb2 {[%emt 0:05:20]} ({White should try} 27. Bc3 $18) 27... Bxb4 $2 {[%emt 0:08:45][%mdl 8192]} 28. Bxb4 $18 {[%emt 0:00:18]} c5 {[%emt 0:00:22] [#]} 29. Ncxe5 $1 {[%emt 0:00:35]} Rxb4 {[%emt 0:00:44] [#]} 30. Nxd7 $1 {[%emt 0:00:02]} Rxb2 {[%emt 0:02:41]} 31. Nxf6+ {[%emt 0:00:05]} Kf8 {[%emt 0:00:09]} 32. Nxh5 {[%emt 0:00:04]} Nxh5 {[%emt 0:00:06]} 33. Rg4 {[%emt 0:00:03]} Nf6 {[%emt 0:00:31]} 34. Rf4 {[%emt 0:00:30]} Rb4 {[%emt 0:00:04]} 35. Bd3 {[%emt 0:02:14]} Rd8 {[%emt 0:01:27]} 36. Bc2 {[%emt 0:00:21]} Ke7 {[%emt 0:00:38]} 37. Rf5 {[%emt 0:00:24]} Rc4 {[%emt 0:00:21]} 38. Bb3 {[%emt 0:01:21]} Rc3 {[%emt 0:00:08]} 39. e5 {[%emt 0:00:05][%cal Be4e5,Be5e6][%mdl 32]} Nd5 {[%emt 0:00:26]} 40. Bxd5 {[%emt 0:00:08]} Rxd5 {[%emt 0:00:02]} 41. Rf4 {[%emt 0:30:09]} c4 {[%emt 0:30:08]} 42. Rg4 {[%emt 0:00:21]} g6 {[%emt 0:00:56] [#]} 43. e6 $1 {[%emt 0:00:16]} 1-0

[Event "Qatar Masters 2024"]
[Site "Doha"]
[Date "2024.12.03"]
[Round "1.61"]
[White "Vignesh Advaith Vemula"]
[Black "Mammadzada, Gunay"]
[Result "1/2-1/2"]
[Annotator "TA"]
[ECO "C45"]
[WhiteElo "2276"]
[BlackElo "2417"]
[PlyCount "64"]
[EventDate "2024.11.24"]
[EventType "swiss"]
[EventCountry "QAT"]
[SourceTitle "playchess.com"]
[Source "ChessBase"]
[SourceQuality "1"]
[TimeControl "40/5400+30:1800+30"]

{[%evp 17,64,-6,-5,-16,-14,-38,-19,-14,-12,-8,-14,-32,-21,-27,-14,-14,0,-28,-34,-27,-11,-33,-23,-21,0,0,0,0,0,-19,-5,-2,0,0,0,0,0,0,10,4,8,10,8,7,13,0,58,0,0]} 1. e4 {[%emt 0:00:03]} e5 {[%emt 0:00:18]} 2. Nf3 {[%emt 0:00:08]} Nc6 {[%emt 0:00:04]} 3. d4 {[%emt 0:00:28]} exd4 {[%emt 0:00:05]} 4. Nxd4 {[%emt 0:00:04]} Nf6 {[%emt 0:00:16]} 5. Nxc6 {[%emt 0:00:07]} bxc6 {[%emt 0:00:04]} 6. e5 {[%emt 0:00:08]} Qe7 {[%emt 0:00:14]} 7. Qe2 {[%emt 0:00:06]} Nd5 {[%emt 0:00:07]} 8. c4 {[%emt 0:00:05]} Ba6 {[%emt 0:00:10]} 9. Nd2 {[%emt 0:00:06]} g6 {[%emt 0:00:36]} 10. Nf3 {[%emt 0:00:06]} Qb4+ {[%emt 0:00:32]} 11. Kd1 $1 {[%emt 0:00:05]} Ne7 {[%emt 0:00:06]} 12. Bg5 {[%emt 0:00:09]} Bg7 {[%emt 0:06:19]} 13. Qd2 {[%emt 0:00:11]} Qxd2+ {[%emt 0:12:39]} 14. Bxd2 {[%emt 0:00:37]} c5 {[%emt 0:04:47]} 15. Bd3 {[%emt 0:09:36]} Bb7 {[%emt 0:01:07]} 16. Re1 {[%emt 0:00:08]} O-O {[%emt 0:05:32]} 17. Be3 {[%emt 0:07:45]} d6 {[%emt 0:22:38]} 18. exd6 {[%emt 0:01:28]} cxd6 {[%emt 0:00:06]} 19. Bxc5 {[%emt 0:00:46]} dxc5 {[%emt 0:01:23]} 20. Rxe7 {[%emt 0:00:06]} Bc6 {[%emt 0:05:04] This pair of bishops is nice.} (20... Bxb2 $5 21. Rb1 $8 Bxf3+ 22. gxf3 Bf6 $11) 21. Rb1 {[%emt 0:04:38]} Rfe8 {[%emt 0:05:13]} 22. Rxe8+ {[%emt 0:06:59]} Rxe8 {[%emt 0:00:04]} 23. Kc2 {[%emt 0:00:10]} Bxf3 {[%emt 0:01:46]} 24. gxf3 $11 {[%emt 0:00:05][%mdl 4096] Endgame KRB-KRB. White is a pawn up.} Rb8 {[%emt 0:00:04]} 25. Be4 {[%emt 0:12:39]} Be5 {[%emt 0:03:13]} 26. h3 {[%emt 0:02:41]} Bd4 {[%emt 0:01:37]} 27. b4 {[%emt 0:05:36]} cxb4 {[%emt 0:01:49]} ({Much worse is} 27... Bxf2 28. b5 $16) 28. Rd1 {[%emt 0:00:04]} Bxf2 {[%emt 0:02:29]} 29. Rd7 {[%emt 0:00:14]} Re8 {[%emt 0:05:09]} 30. Kb3 {[%emt 0:08:16]} Bc5 {[%emt 0:04:38]} 31. Ka4 {[%emt 0:03:11][%mdl 1024] White has compensation.} a6 {[%emt 0:05:44]} ({Better is} 31... Re7 $11 32. Rxe7 Bxe7) 32. Rd5 {[%emt 0:04:19]} (32. Ka5 $14) 32... Rc8 {[%emt 0:02:59]} 1/2-1/2

[Event "Qatar Masters 2024"]
[Site "Doha"]
[Date "2024.12.03"]
[Round "1.62"]
[White "Harsh Suresh"]
[Black "Binu, Devdutt"]
[Result "1-0"]
[Annotator "TA"]
[ECO "A30"]
[WhiteElo "2431"]
[BlackElo "2274"]
[PlyCount "59"]
[EventDate "2024.11.24"]
[EventType "swiss"]
[EventCountry "QAT"]
[SourceTitle "playchess.com"]
[Source "ChessBase"]
[SourceQuality "1"]
[TimeControl "40/5400+30:1800+30"]

{[%evp 17,59,18,25,14,48,33,72,79,159,189,192,173,188,192,164,162,186,181,191,191,191,192,222,222,391,398,575,731,781,782,750,772,713,730,716,725,722,721,1098,1098,1077,1068,1241,1226]} 1. Nf3 {[%emt 0:00:47]} Nf6 {[%emt 0:00:57]} 2. g3 {[%emt 0:00:42]} g6 {[%emt 0:00:57]} 3. b3 {[%emt 0:00:19]} Bg7 {[%emt 0:00:25]} 4. Bb2 {[%emt 0:00:10]} b6 {[%emt 0:00:51]} 5. Bg2 {[%emt 0:00:22]} Bb7 {[%emt 0:00:36]} 6. c4 {[%emt 0:00:19]} c5 {[%emt 0:02:05]} 7. O-O {[%emt 0:00:23]} O-O {[%emt 0:00:58]} 8. d4 {[%emt 0:00:28]} cxd4 {[%emt 0:05:42]} 9. Qxd4 {[%emt 0:00:20]} Nc6 {[%emt 0:03:45]} 10. Qh4 {[%emt 0:00:27]} d6 {[%emt 0:04:50]} 11. Rd1 {[%emt 0:05:24]} Qc7 {[%emt 0:09:01]} 12. Nc3 {[%emt 0:05:56] White is better.} Rad8 {[%emt 0:08:12]} ({Black should try} 12... Qd7) 13. Nd5 $16 {[%emt 0:07:05] White is more active.} Nxd5 {[%emt 0:02:43]} 14. Bxg7 {[%emt 0:00:10]} Kxg7 {[%emt 0:00:29]} 15. cxd5 {[%emt 0:00:07]} Ne5 {[%emt 0:06:06][%cal Bc6e5,Be5d7,Bd7f6,Bf6d5][%mdl 32] [#]} 16. Nd4 {[%emt 0:00:11] Strongly threatening f4.} Rde8 {[%emt 0:10:21]} 17. Rac1 $36 {[%emt 0:08:36][%cal Ba1c1,Bc1c2,Bc2c7][%mdl 2080] Keeping Black busy.} Qd8 {[%emt 0:08:44]} 18. Rc2 {[%emt 0:14:35]} Nd7 {[%emt 0:07:57]} 19. Rdc1 {[%emt 0:06:01]} Nf6 {[%emt 0:03:34]} 20. Qg5 {[%emt 0:02:57] Hoping for Rc7.} Kg8 $2 {[%emt 0:08:52]} (20... Nd7 21. b4 Kh8) 21. Rc7 $18 {[%emt 0:04:19]} h6 {[%emt 0:03:57]} (21... Qb8 $142 22. Nf5 Nxd5) 22. Qxh6 {[%emt 0:00:46] White is clearly winning.} Bxd5 {[%emt 0:00:44]} 23. Bxd5 {[%emt 0:00:24]} Nxd5 {[%emt 0:02:07] [#]} 24. Ne6 $1 {[%emt 0:02:58][%mdl 512]} fxe6 {[%emt 0:00:21]} 25. Qxg6+ {[%emt 0:00:07]} (25. Rxa7 Kf7 (25... Rf6 26. e4 $11) 26. Qh7+ Kf6 27. Qh4+ Kg7 28. Qd4+ Kg8 $19) 25... Kh8 {[%emt 0:00:25]} 26. Qh6+ {[%emt 0:00:09]} (26. Rxa7 Rf6 27. Qh5+ Kg7 $11) 26... Kg8 {[%emt 0:00:21]} 27. Qxe6+ {[%emt 0:00:08]} ({Weaker is} 27. Rxa7 Rf6 28. Qh5 Kg7 $11) 27... Kg7 {[%emt 0:02:03]} 28. Qxd5 {[%emt 0:00:13]} Rf6 {[%emt 0:01:16]} 29. Qb7 {[%emt 0:00:14]} Qa8 {[%emt 0:04:16]} 30. Rxe7+ {[%emt 0:00:11] Black got outplayed after the opening.   Weighted Error Value: White=0.02 (flawless) /Black=0.51.  Mistake:       	---       	Black=3      Inaccurate:     	---       	Black=2      OK:         	White=7     	Black=4      Best:        	White=3     	Black=1} 1-0

[Event "Qatar Masters 2024"]
[Site "Doha"]
[Date "2024.12.03"]
[Round "1.63"]
[White "George Samir, David"]
[Black "Akhmetov, Ayan"]
[Result "0-1"]
[Annotator "TA"]
[ECO "A43"]
[WhiteElo "2208"]
[BlackElo "2417"]
[PlyCount "56"]
[EventDate "2024.11.24"]
[EventType "swiss"]
[EventCountry "QAT"]
[SourceTitle "playchess.com"]
[Source "ChessBase"]
[SourceQuality "1"]
[TimeControl "40/5400+30:1800+30"]

{[%evp 9,56,40,44,25,24,18,29,15,48,45,37,0,0,0,0,-32,-41,-43,-51,-37,-23,-41,-10,-18,-23,-4,-10,-269,-257,-395,-357,-537,-512,-856,-830,-899,-902,-827,-842,-978,-969,-939,-947,-954,-951,-1195,-1191,-29983,-29984]} 1. d4 {[%emt 0:00:07]} Nf6 {[%emt 0:00:08]} 2. Bg5 {[%emt 0:00:05]} c5 {[%emt 0:02:19]} 3. d5 {[%emt 0:00:07]} d6 {[%emt 0:02:13]} 4. Nc3 {[%emt 0:02:30]} g6 {[%emt 0:00:34]} 5. e4 {[%emt 0:02:16]} Bg7 {[%emt 0:01:47]} 6. f3 {[%emt 0:00:42]} O-O {[%emt 0:06:18]} 7. Qd2 {[%emt 0:01:07]} a6 {[%emt 0:02:14]} 8. a4 {[%emt 0:02:26]} Re8 {[%emt 0:00:37]} 9. Nge2 {[%emt 0:04:27]} Nbd7 {[%emt 0:04:37]} 10. g4 {[%emt 0:07:25]} Ne5 {[%emt 0:05:09]} 11. Bg2 $1 {[%emt 0:01:49]} Rb8 {[%emt 0:02:54]} 12. h4 {[%emt 0:03:14]} b5 {[%emt 0:02:51]} 13. axb5 {[%emt 0:10:02]} axb5 {[%emt 0:00:08]} 14. h5 {[%emt 0:03:14]} b4 {[%emt 0:12:19]} 15. Nd1 {[%emt 0:01:03]} b3 $36 {[%emt 0:02:54][%mdl 2048] White is under pressure.} 16. c3 $1 {[%emt 0:01:15]} e6 {[%emt 0:16:52]} 17. hxg6 {[%emt 0:07:14]} fxg6 {[%emt 0:05:10]} 18. Bh6 $2 {[%emt 0:18:37][%mdl 8192] [#]} (18. Ra7 $11 {and White stays safe.}) 18... Bxh6 $1 $19 {[%emt 0:05:00]} 19. Rxh6 {[%emt 0:02:42]} (19. Qxh6 $142 exd5 20. g5) 19... exd5 {[%emt 0:05:18]} 20. exd5 {[%emt 0:00:44]} (20. g5 {only move.} dxe4 21. gxf6 exf3 22. f7+ Nxf7 (22... Kxf7 $2 23. Ra7+ Rb7 24. Rxb7+ Bxb7 25. Rxh7+ Kg8 26. Rxb7 $19) 23. Bxf3 Nxh6 24. Qxh6) 20... Qe7 {[%emt 0:02:02][%cal Of6g4]} 21. Kf1 {[%emt 0:04:07] [#]} (21. Rh2 $142 Qf7 22. Ra4) 21... Nfxg4 $1 {[%emt 0:03:37][%mdl 512]} 22. fxg4 {[%emt 0:00:23]} (22. Rh1 Nc4) 22... Nc4 {[%emt 0:00:49]} ({Weaker is} 22... Nxg4 23. Rh3 $17) 23. Qd3 {[%emt 0:00:26]} Bxg4 {[%emt 0:00:50]} 24. Kg1 {[%emt 0:02:05]} Bxe2 {[%emt 0:00:09]} 25. Qh3 {[%emt 0:01:42]} Bxd1 {[%emt 0:00:50]} 26. Rxd1 {[%emt 0:00:13]} Nxb2 {[%emt 0:00:20]} 27. Ra1 {[%emt 0:00:50]} Nc4 {[%emt 0:00:28] And now ...b2 would win.} 28. Be4 {[%emt 0:03:32]} b2 {[%emt 0:00:43]} 0-1

[Event "Qatar Masters 2024"]
[Site "Doha"]
[Date "2024.12.03"]
[Round "1.64"]
[White "Begmuratov, Khumoyun"]
[Black "Jaiveer Mahendru"]
[Result "1/2-1/2"]
[Annotator "TA"]
[ECO "C50"]
[WhiteElo "2416"]
[BlackElo "2273"]
[PlyCount "112"]
[EventDate "2024.11.24"]
[EventType "swiss"]
[EventCountry "QAT"]
[SourceTitle "playchess.com"]
[Source "ChessBase"]
[SourceQuality "1"]
[TimeControl "40/5400+30:1800+30"]

{[%evp 16,112,0,-5,-8,-19,0,0,7,-21,-15,-23,0,0,-12,-15,-12,-44,-39,-39,-29,-43,-47,-42,-45,-59,0,0,0,0,0,0,0,0,0,0,95,129,173,180,183,183,179,55,50,46,56,50,42,38,52,53,46,56,64,46,42,65,45,21,14,14,34,13,71,71,71,71,70,69,69,22,24,28,32,30,32,36,36,26,60,60,60,67,66,8,68,22,22,22,22,0,22,22,22,22,22,22,22]} 1. e4 {[%emt 0:00:08]} e5 {[%emt 0:00:43]} 2. Nf3 {[%emt 0:00:13]} Nc6 {[%emt 0:00:05]} 3. Bc4 {[%emt 0:00:10]} Bc5 {[%emt 0:00:07]} 4. d3 {[%emt 0:00:11]} d6 {[%emt 0:00:12]} 5. Be3 {[%emt 0:05:38]} Bxe3 {[%emt 0:01:05]} 6. fxe3 {[%emt 0:00:06]} Be6 {[%emt 0:00:29]} 7. Bb3 {[%emt 0:01:20]} Nf6 {[%emt 0:00:23]} 8. Nc3 {[%emt 0:00:30]} O-O {[%emt 0:01:55]} 9. O-O {[%emt 0:00:11]} Bxb3 {[%emt 0:11:51]} 10. axb3 {[%emt 0:01:23]} d5 {[%emt 0:00:04]} 11. Qe2 {[%emt 0:06:55]} a6 {[%emt 0:08:58]} 12. Rad1 {[%emt 0:15:20]} d4 {[%emt 0:02:27]} 13. exd4 {[%emt 0:03:57]} exd4 {[%emt 0:01:06]} 14. Nb1 {[%emt 0:00:07]} Ng4 {[%emt 0:02:10]} 15. Rfe1 {[%emt 0:00:08]} Qd7 {[%emt 0:03:05]} 16. h3 {[%emt 0:08:51] Prevents f5.} Ne3 {[%emt 0:00:33]} 17. Rc1 {[%emt 0:00:08]} f5 {[%emt 0:00:13]} 18. c3 {[%emt 0:10:47]} (18. Nxd4 $2 Nxg2 (18... Nxd4 19. Qxe3 f4 20. Qf2 $17) 19. Qxg2 Nxd4 $19 (19... Qxd4+ $2 20. Kh1 $17)) 18... f4 {[%emt 0:06:08]} (18... fxe4 19. dxe4 Rxf3 20. Qxf3 $16) 19. Nbd2 {[%emt 0:00:37]} Rad8 {[%emt 0:09:51]} 20. Nc4 {[%emt 0:00:17]} b5 {[%emt 0:12:23]} ({Black should try} 20... Nxc4 $1 $15 21. bxc4 b5) 21. Nxe3 $11 {[%emt 0:11:00]} dxe3 {[%emt 0:00:10]} 22. d4 {[%emt 0:00:36]} Rde8 {[%emt 0:04:17]} 23. Qc2 {[%emt 0:01:27]} Kh8 {[%emt 0:07:41][%cal Og7g5]} 24. Ra1 {[%emt 0:03:32][%cal Bc1a1,Ba1a6,Ba6h6][%mdl 32]} g5 {[%emt 0:06:27] ...g4 is the strong threat.} 25. Rxa6 {[%emt 0:05:35][%cal Oe4e5]} (25. Nxg5 $2 Rg8 26. h4 h6 $19) 25... g4 {[%emt 0:03:11]} (25... Nb8 $1 $11 26. Ra8 Qc6) 26. hxg4 $16 {[%emt 0:01:24]} Nb8 {[%emt 0:02:27] [#]} 27. Rh6 $1 {[%emt 0:01:59]} Qxg4 {[%emt 0:00:21]} 28. e5 {[%emt 0:00:55][%csl Gh6][%cal Rc2h7]} Re7 {[%emt 0:00:50] [#]} 29. e6 {[%emt 0:05:55]} Qg7 $14 {[%emt 0:02:05]} 30. Rh5 {[%emt 0:00:39] Really sharp!} Rxe6 {[%emt 0:01:56] [#]} 31. Rxh7+ $1 {[%emt 0:00:07]} Qxh7 {[%emt 0:00:03]} 32. Qxh7+ {[%emt 0:00:05]} Kxh7 {[%emt 0:00:05][%cal Bh8h7,Bh7g6,Bg6f5,Bf5e4][%mdl 32]} 33. Ng5+ {[%emt 0:00:03]} Kg6 {[%emt 0:00:10]} 34. Nxe6 {[%emt 0:00:06][%mdl 4096] Endgame KRN-KRN. White is a pawn up.} Rf6 $1 {[%emt 0:06:52]} 35. Nxc7 {[%emt 0:01:01][%cal Oc7d5]} Kf5 {[%emt 0:00:25]} 36. Nd5 {[%emt 0:00:11]} (36. Nxb5 Nc6 $16) 36... Rd6 {[%emt 0:01:14]} 37. c4 {[%emt 0:05:11]} (37. Nxe3+ {simplifies} fxe3 38. Rxe3 Nd7 39. Kf2) 37... bxc4 {[%emt 0:03:43]} (37... Nc6 $6 38. Rf1 (38. cxb5 Nxd4 39. Nxe3+ fxe3 $11) 38... Kg5 39. Rxf4 bxc4 40. bxc4 $16) 38. bxc4 {[%emt 0:00:05][%cal Og2g3]} Nc6 {[%emt 0:01:36]} 39. Rf1 {[%emt 0:00:47][%csl LRe3,LRf4]} Nxd4 {[%emt 0:00:49]} (39... Kg5 $1 $11 {keeps the balance.}) 40. Nxe3+ $16 {[%emt 0:00:21]} ({Reject} 40. Nxf4 Kg4 $11) 40... Ke4 {[%emt 0:00:44]} 41. Nd5 {[%emt 0:32:38]} f3 {[%emt 0:30:28]} 42. Re1+ {[%emt 0:00:00]} Kd3 {[%emt 0:00:00]} 43. g4 {[%emt 0:00:00]} (43. g3 $14) 43... Kxc4 $11 {[%emt 0:00:00]} 44. Nf4 {[%emt 0:00:00]} Rf6 {[%emt 0:00:00]} 45. Re4 {[%emt 0:00:00]} Rb6 {[%emt 0:00:00]} 46. g5 {[%emt 0:00:08]} Rxb2 {[%emt 0:00:00]} 47. g6 {[%emt 0:00:15]} Rb1+ {[%emt 0:00:00]} 48. Kf2 {[%emt 0:00:06] aiming for g7.} Rb2+ {[%emt 0:00:00]} 49. Kg3 {[%emt 0:00:27]} Rb1 {[%emt 0:00:00]} 50. Re5 {[%emt 0:02:41]} (50. Re8 $1 $14) 50... Ra1 {[%emt 0:03:28]} (50... Rf1 $1 $11) 51. Rh5 {[%emt 0:08:10]} (51. Re8 $1 $14) 51... Rg1+ {[%emt 0:01:04]} 52. Kf2 {[%emt 0:00:07]} Rg4 {[%emt 0:00:45] [#]} 53. Rh1 $1 {[%emt 0:00:26]} Rxf4 {[%emt 0:01:33]} (53... Ne2 54. Kxf3) 54. g7 {[%emt 0:00:05] Against Rf8} Rg4 {[%emt 0:00:01]} 55. Rg1 {[%emt 0:00:08]} Rxg7 $1 {[%emt 0:00:04]} 56. Rxg7 {[%emt 0:00:05]} Kd3 {[%emt 0:00:03]} 1/2-1/2

[Event "Qatar Masters 2024"]
[Site "Doha"]
[Date "2024.12.03"]
[Round "1.65"]
[White "Yakubbaeva, Nilufar"]
[Black "Klukin, Kirill"]
[Result "0-1"]
[Annotator "TA"]
[ECO "E11"]
[WhiteElo "2241"]
[BlackElo "2413"]
[PlyCount "126"]
[EventDate "2024.11.24"]
[EventType "swiss"]
[EventCountry "QAT"]
[SourceTitle "playchess.com"]
[Source "ChessBase"]
[SourceQuality "1"]
[TimeControl "40/5400+30:1800+30"]

{[%evp 15,126,4,4,0,0,-8,-6,-13,-19,-24,-20,-26,-39,-47,-51,-57,-59,-64,-57,-70,-62,-82,-61,-82,-79,-92,-99,-129,-121,-201,-200,-289,-267,-293,-246,-245,-239,-253,-237,-252,-240,-249,-251,-248,-209,-275,-254,-267,-258,-300,-161,-153,-165,-172,-43,-53,-45,-44,-25,-31,-31,-31,-31,-31,-31,-31,-31,-31,-38,-38,-39,-1183,-1167,-1074,-888,-2056,-2042,-1201,-1208,-2049,-1507,-1564,-1635,-29953,-29954,-29954,-10659,-2962,-1178,-29970,-29971,-29968,-29971,-29976,-29978,-29977,-29978,-29978,-29979,-29979,-29980,-29980,-29981,-29981,-29982,-29982,-29983,-29981,-29982,-29982,-29983,-29975,-29968]} 1. d4 {[%emt 0:00:08]} Nf6 {[%emt 0:00:16]} 2. c4 {[%emt 0:00:10]} e6 {[%emt 0:00:06]} 3. Nf3 {[%emt 0:00:06]} Bb4+ {[%emt 0:00:12]} 4. Bd2 {[%emt 0:00:19]} Qe7 {[%emt 0:00:06]} 5. a3 {[%emt 0:00:25]} Bxd2+ {[%emt 0:00:06]} 6. Qxd2 {[%emt 0:01:50]} O-O {[%emt 0:00:21]} 7. Nc3 {[%emt 0:00:13]} d6 {[%emt 0:03:08]} 8. e4 {[%emt 0:09:52]} e5 {[%emt 0:00:49]} 9. d5 {[%emt 0:01:13]} Nbd7 {[%emt 0:06:31]} 10. b4 {[%emt 0:09:04] Against Nc5} a5 {[%emt 0:00:29]} 11. Rb1 {[%emt 0:03:28]} axb4 {[%emt 0:00:23]} 12. axb4 {[%emt 0:00:02]} Nb6 {[%emt 0:00:57]} 13. Be2 {[%emt 0:09:12]} Bg4 {[%emt 0:02:38]} 14. Ng1 {[%emt 0:18:39]} Bxe2 {[%emt 0:14:59]} 15. Qxe2 {[%emt 0:00:03]} c6 {[%emt 0:00:52]} 16. Nf3 {[%emt 0:07:33]} Ra3 {[%emt 0:24:07]} 17. Rc1 {[%emt 0:00:42]} Rb3 {[%emt 0:00:55]} 18. dxc6 {[%emt 0:05:44]} Rxb4 {[%emt 0:07:14]} 19. cxb7 {[%emt 0:09:43]} Qxb7 {[%emt 0:05:02][%cal Of8c8]} 20. Nd2 {[%emt 0:04:55]} Rc8 {[%emt 0:02:27][%cal Rb6c4]} 21. O-O {[%emt 0:01:24]} Nxc4 {[%emt 0:02:48] Black is more active.} 22. Nd5 {[%emt 0:09:13]} Nxd5 $19 {[%emt 0:01:40]} 23. Rxc4 {[%emt 0:03:46]} (23. exd5 {was called for.} Qxd5 24. Rfd1) 23... Rbxc4 {[%emt 0:01:49]} 24. Nxc4 {[%emt 0:00:02]} Nc3 {[%emt 0:04:13]} 25. Qd3 {[%emt 0:01:36]} Qxe4 {[%emt 0:00:27]} 26. Qxe4 {[%emt 0:00:58]} Nxe4 {[%emt 0:00:05][%mdl 4096] Endgame KRN-KRN. Black is two pawns up.} 27. Ra1 {[%emt 0:00:41]} g6 {[%emt 0:00:40]} (27... Rxc4 28. Ra8+) 28. Ne3 {[%emt 0:00:20]} Nf6 {[%emt 0:01:42]} 29. g4 {[%emt 0:01:20]} Kg7 {[%emt 0:03:52]} 30. g5 {[%emt 0:00:24]} Ne4 {[%emt 0:01:12]} 31. h4 {[%emt 0:00:10]} h6 {[%emt 0:01:22]} 32. f3 {[%emt 0:01:12]} Nd2 {[%emt 0:03:48]} (32... Rc3 $142 33. gxh6+ Kxh6 34. Ng4+ Kg7 35. Nxe5 (35. fxe4 Rg3+ 36. Kf2 Rxg4 $19) 35... Ng3 (35... Nd2 $2 36. Ra2 $19)) 33. Kf2 {[%emt 0:00:21]} hxg5 {[%emt 0:02:46]} 34. hxg5 {[%emt 0:00:12]} Nc4 {[%emt 0:05:01]} (34... Nb3 $19 35. Ra6 Nd4 36. Rxd6 Ne6) 35. Nd5 $15 {[%emt 0:01:42]} Rb8 {[%emt 0:02:50]} 36. Nf6 $1 {[%emt 0:00:28]} Nb6 {[%emt 0:01:30]} 37. Rb1 {[%emt 0:00:52] [#]} Nd7 $1 {[%emt 0:00:58]} 38. Rxb8 {[%emt 0:00:04]} Nxb8 {[%emt 0:00:03] KN-KN. Black is two pawns up.} 39. Ne8+ {[%emt 0:00:03]} Kf8 {[%emt 0:00:08]} 40. Nxd6 {[%emt 0:00:08]} Ke7 {[%emt 0:00:11]} 41. Nc4 {[%emt 0:30:21]} Ke6 {[%emt 0:30:16]} 42. Ke3 {[%emt 0:00:23]} Nd7 {[%emt 0:00:59]} 43. f4 $2 {[%emt 0:02:19][%mdl 8192] [#]} (43. Ke4 $15) 43... Kf5 $1 $19 {[%emt 0:01:16]} 44. Nd6+ {[%emt 0:00:00]} Kg4 {[%emt 0:00:00]} 45. fxe5 {[%emt 0:00:00]} Nxe5 {[%emt 0:00:00]} (45... Kxg5 46. Ke4 $11) 46. Ne4 {[%emt 0:00:00]} Kf5 {[%emt 0:00:00]} 47. Nd6+ {[%emt 0:00:00]} Kxg5 {[%emt 0:00:00] Strongly threatening ...f5.} 48. Ke4 {[%emt 0:00:00]} f6 {[%emt 0:00:00]} 49. Ne8 {[%emt 0:00:00]} Nf7 {[%emt 0:00:00]} 50. Nc7 {[%emt 0:00:00]} Kg4 {[%emt 0:00:00] ( -> ...f5+)} 51. Kd5 {[%emt 0:00:00]} Kf5 {[%emt 0:00:00]} (51... Ng5 $142 52. Kd4 f5) 52. Ne8 {[%emt 0:00:00]} g5 {[%emt 0:00:00]} 53. Ng7+ {[%emt 0:00:00] [#]} Kg6 $1 {[%emt 0:00:00]} ({Stronger than} 53... Kg4 54. Ke6 $11) 54. Ne8 {[%emt 0:00:00]} g4 {[%emt 0:00:00]} 55. Ke4 {[%emt 0:00:00]} Kg5 {[%emt 0:00:00]} 56. Ng7 {[%emt 0:00:00]} Nd6+ {[%emt 0:00:00]} 57. Kd5 {[%emt 0:00:00] [#]} g3 $1 {[%emt 0:00:00]} 58. Ne6+ {[%emt 0:00:00]} Kg4 {[%emt 0:00:00]} 59. Nd4 {[%emt 0:00:00]} Nf5 {[%emt 0:00:00]} 60. Ne2 {[%emt 0:00:00]} Kf3 {[%emt 0:00:00]} 61. Ng1+ {[%emt 0:00:00]} Kg2 {[%emt 0:00:00]} 62. Ne2 {[%emt 0:00:00]} Kf2 {[%emt 0:00:00]} 63. Nf4 {[%emt 0:00:00]} Ng7 {[%emt 0:00:00]} 0-1